Cogmind - Beta 12 @@@ ROGUE MODE // 2023.08.09 @ 17:09:23 // Winter2022/Polymind Player: Kersh Result: Destroyed by B-75 Beast with Magnetic Acceleration Cannon Performance ------------- Evolutions (4) 2000 Regions Visited (6) 1200 Robots Destroyed (44) 220 Value Destroyed (1804) 1804 Prototype IDs (0) 0 Alien Tech Used (0) 0 Bonus (2278) 2278 TOTAL SCORE: 7162 Bonus ------- Polymind Skill 1862 Pacifist 200 High Alert Combat Kills 16 Entered Garrisons 200 Cogmind --------- Core Integrity 0/850 Matter 0/0 Energy 9/100 System Corruption 0% Temperature Cool (12) Movement Core (50) Location -6/Garrison Parts ------- > --- POWER (1) -------- (None) > --- PROPULSION (2) --- (None) > --- UTILITY (3) ------ (None) > --- WEAPON (3) ------- (None) > --- INVENTORY (0) ---- (None) Peak State ------------ > --- POWER ------------ Light Fission Core > --- PROPULSION ------- Flexi-carbon Leg Flexi-carbon Leg > --- UTILITY ---------- Targeting Computer Targeting Computer Phase Shifter > --- WEAPON ----------- Heavy Assault Rifle Gauss Rifle Gauss Rifle > --- INVENTORY -------- (None) [Rating: 32] Favorites ----------- Power Improved Ion Engine Engine Improved Ion Engine Power Core Light Fission Core Propulsion Light Treads Treads Light Treads Leg Flexi-carbon Leg Utility Heat Sink Device Heat Sink Processor Targeting Computer Protection Light Armor Plating Weapon Heavy Assault Rifle Energy Gun Beam Rifle Ballistic Gun Heavy Assault Rifle Build | -11 -10 -9 -8 -7 -6 -6 ------- Run | Jun Mat Mat Mat Fac Fac Gar Slots Evolved . | . . . . . . . Power . | . . . . . . . Propulsion . | . . . . . . . Utility . | . . . . . . . Weapon . | . . . . . . . Parts Attached . | . . . . . . . Power . | . . . . . . . Engine . | . . . . . . . Core . | . . . . . . . Reactor . | . . . . . . . Propulsion . | . . . . . . . Treads . | . . . . . . . Leg . | . . . . . . . Wheel . | . . . . . . . Hover . | . . . . . . . Flight . | . . . . . . . Utility . | . . . . . . . Device . | . . . . . . . Storage . | . . . . . . . Processor . | . . . . . . . Hackware . | . . . . . . . Protection . | . . . . . . . Artifact . | . . . . . . . Weapon . | . . . . . . . Energy Gun . | . . . . . . . Energy Cannon . | . . . . . . . Ballistic Gun . | . . . . . . . Ballistic Cannon . | . . . . . . . Launcher . | . . . . . . . Special Weapon . | . . . . . . . Impact Weapon . | . . . . . . . Slashing Weapon . | . . . . . . . Piercing Weapon . | . . . . . . . Special Melee Weapon . | . . . . . . . Unidentified Prototypes . | . . . . . . . Parts Lost 17 | . . 5 1 . . 11 Power 2 | . . . . . . 2 Propulsion 3 | . . 1 . . . 2 Utility 7 | . . 2 1 . . 4 Weapon 5 | . . 2 . . . 3 Highest Loss Streak 8 | . . 3 1 . . 8 To Critical Strikes . | . . . . . . . Average Slot Usage (%) 86 | . . 87 96 100 100 82 Engine 9 | . . 11 12 12 12 . Core 1 | . . . . . . 7 Treads 19 | . . 23 25 25 25 1 Leg 4 | . . 1 . . . 18 Device 20 | . . 23 25 25 25 6 Processor 2 | . . . . . . 16 Protection 5 | . . 5 8 12 12 . Energy Gun 9 | . . 11 12 12 12 . Ballistic Gun 12 | . . 8 12 12 12 28 Naked Turns 111 | . 75 30 2 . . 4 Heaviest Build 19 | . . 18 18 18 18 19 Greatest Support 40 | 3 3 40 40 40 40 40 Greatest Overweight (x) . | . . . . . . . Average Overweight (x) . | . . . . . . . Largest Inventory Capacity 1 | . . 1 1 1 1 1 Average Capacity . | . . . . 1 1 . Most Carried . | . . . . . . . Average Carried . | . . . . . . . Final Capacity 1 | . . 1 1 1 1 . Final Carried . | . . . . . . . Class Distribution -------------------- 76% | Sentry 16% | Hunter 5% | Cogmind Dominant Class ---------------- Cogmind | -10/Materials Sentry | -9/Materials Sentry | -8/Materials Sentry | -7/Factory Sentry | -6/Factory Hunter | -6/Garrison Resources | -11 -10 -9 -8 -7 -6 -6 ----------- Run | Jun Mat Mat Mat Fac Fac Gar Matter Collected 521 | . . 103 147 . . 271 Remotely . | . . . . . . . Salvage Created 1474 | . . 306 791 . . 377 Parts 91 | . . 45 30 . . 16 Haulers Intercepted . | . . . . . . . Recyclers Shooed 1 | . . . 1 . . . Parts Field Recycled . | . . . . . . . Retrieved Matter . | . . . . . . . Parts Self-Destructed . | . . . . . . . Prevented . | . . . . . . . Kills | -11 -10 -9 -8 -7 -6 -6 ------- Run | Jun Mat Mat Mat Fac Fac Gar Combat Hostiles Destroyed 40 | . . 18 13 . . 9 Guns 40 | . . 18 13 . . 9 Classes Destroyed 7 | . . 4 2 . . 1 Recycler 1 | . . . 1 . . . Watcher 3 | . . 2 1 . . . Swarmer 15 | . . 7 4 . . 4 Grunt 13 | . . 8 5 . . . Brawler 1 | . . . 1 . . . Sentry 8 | . . 3 3 . . 2 Hunter 3 | . . . . . . 3 Best Kill Streak 7 | . . 4 6 . . 7 Combat Bots Only 7 | . . 4 5 . . 7 Max Kills in Single Turn 2 | . . 1 2 . . 2 Gunslinging 1 | . . . . . . 1 Exploded . | . . . . . . . Melee . | . . . . . . . Uniques/NPCs Destroyed . | . . . . . . . Combat | -11 -10 -9 -8 -7 -6 -6 -------- Run | Jun Mat Mat Mat Fac Fac Gar Damage Taken 3834 | . . 959 643 . . 2232 Core 1121 | . . 157 99 . . 865 Absorbed by Shields . | . . . . . . . Core Remaining (%) 88 | 100 100 60 82 100 . . Volleys Fired 121 | . . 49 41 . . 31 Largest 3 | . . 2 2 . . 3 Hottest 79 | . . 79 79 . . 79 Shots Fired 253 | . . 87 80 . . 86 Gun 253 | . . 87 80 . . 86 Cannon . | . . . . . . . Launcher . | . . . . . . . Special . | . . . . . . . Kinetic 165 | . . 38 41 . . 86 Thermal 88 | . . 49 39 . . . Explosive . | . . . . . . . Electromagnetic . | . . . . . . . Robot Hit Streak 20 | . . 11 15 . . 20 Robot Miss Streak 3 | . . 3 2 . . 3 Penetration Max . | . . . . . . . Secondary Targets 4 | . . 1 . . . 3 Max Gunslinging Chain 1 | . . 1 . . . 1 Shots Hit Robots 168 | . . 55 59 . . 54 Core Hits 77 | . . 27 28 . . 22 Critical Kills . | . . . . . . . Critical Parts Destroyed . | . . . . . . . Critical Strikes 7 | . . 4 3 . . . Burn 7 | . . 4 3 . . . Melee Attacks . | . . . . . . . Impact . | . . . . . . . Slashing . | . . . . . . . Piercing . | . . . . . . . Sneak Attacks . | . . . . . . . Combat Hostiles . | . . . . . . . Follow-up Attacks . | . . . . . . . Damage Inflicted 2722 | . . 886 882 . . 954 Guns 2722 | . . 886 882 . . 954 Cannons . | . . . . . . . Explosions . | . . . . . . . Melee . | . . . . . . . Ramming . | . . . . . . . Kinetic 1746 | . . 354 438 . . 954 Thermal 976 | . . 532 444 . . . Explosive . | . . . . . . . Electromagnetic . | . . . . . . . Impact . | . . . . . . . Slashing . | . . . . . . . Piercing . | . . . . . . . Highest Corruption 4 | . . . 4 . . . Average Corruption 4 | . . . 4 . . . Corruption Purged . | . . . . . . . Corruption Blocked . | . . . . . . . Effects 11 | . . . 11 . . . Message Errors 2 | . . . 2 . . . Matter Fused 3 | . . . 3 . . . Heat Flow Errors 2 | . . . 2 . . . Data Loss (minor) 1 | . . . 1 . . . Alerts 1 | . . . 1 . . . Weapon Failures 2 | . . . 2 . . . Overload Shots . | . . . . . . . Overflow Damage . | . . . . . . . Projectiles . | . . . . . . . Explosions . | . . . . . . . Melee . | . . . . . . . Knockbacks . | . . . . . . . Impact . | . . . . . . . Kinetic . | . . . . . . . Secondary . | . . . . . . . Self-Inflicted Damage 48 | . . . . . . 48 Shots 1 | . . . . . . 1 Rammed . | . . . . . . . Targets Rammed . | . . . . . . . Kicked . | . . . . . . . Crushed . | . . . . . . . Highest Temperature 267 | . . 48 267 . . 51 Average Temperature 42 | . . 15 77 . . 17 Received Heat Transfer 945 | . . 264 315 . . 366 Siege Activations . | . . . . . . . Robots Corrupted . | . . . . . . . Combat Hostiles . | . . . . . . . Parts Fried . | . . . . . . . Impact Corruptions . | . . . . . . . Robots Melted . | . . . . . . . Combat Hostiles . | . . . . . . . Parts Melted 4 | . . 2 2 . . . Heat Transferred 2924 | . . 1592 1332 . . . Parts Sabotaged . | . . . . . . . Parts Stolen . | . . . . . . . Parts Stripped . | . . . . . . . Power Chain Reactions . | . . . . . . . Missiles Intercepted . | . . . . . . . Alert | -11 -10 -9 -8 -7 -6 -6 ------- Run | Jun Mat Mat Mat Fac Fac Gar Peak Influence 402 | . . 262 399 132 64 402 Initial 132 | . . . 56 132 64 44 Average 180 | . . 123 235 132 64 297 Maximum Alert Level 2 | . . 1 1 . . 2 Low Security (%) 58 | 100 100 81 33 100 100 17 Level 1 35 | . . 18 66 . . 49 Level 2 6 | . . . . . . 33 Level 3 . | . . . . . . . Level 4 . | . . . . . . . Level 5 . | . . . . . . . High Security . | . . . . . . . Max Security . | . . . . . . . Squads Dispatched 2 | . . 1 1 . . . Investigation . | . . . . . . . Extermination . | . . . . . . . Reinforcement 2 | . . 1 1 . . . Assault . | . . . . . . . Garrison . | . . . . . . . Intercept . | . . . . . . . Searches Triggered . | . . . . . . . Construction Impeded . | . . . . . . . Haulers Reinforced . | . . . . . . . Active Scanning Responses . | . . . . . . . Cargo Convoy Interrupts . | . . . . . . . Stealth | -11 -10 -9 -8 -7 -6 -6 --------- Run | Jun Mat Mat Mat Fac Fac Gar Distress Signals 2 | . . 1 1 . . . Communications Jammed . | . . . . . . . Distress Signals . | . . . . . . . Times Spotted 73 | . 2 31 19 . . 21 Peak Tracking Total 7 | . 2 7 6 . . 6 Tactical Retreats 3 | . . 1 1 . . 1 Traps | -11 -10 -9 -8 -7 -6 -6 ------- Run | Jun Mat Mat Mat Fac Fac Gar Traps Triggered . | . . . . . . . Indirectly . | . . . . . . . Trap Hack Attempts . | . . . . . . . Triggered . | . . . . . . . Disarmed . | . . . . . . . Reprogrammed . | . . . . . . . Reused . | . . . . . . . Traps Extracted . | . . . . . . . Installed . | . . . . . . . Triggered . | . . . . . . . Machines | -11 -10 -9 -8 -7 -6 -6 ---------- Run | Jun Mat Mat Mat Fac Fac Gar Machines Disabled 3 | . . . . . . 3 Max in Single Turn 2 | . . . . . . 2 Garrison Relay 1 | . . . . . . 1 Phase Generator 1 | . . . . . . 1 Machines Repaired . | . . . . . . . Machines Sabotaged . | . . . . . . . Overloaded Fab Kills . | . . . . . . . Hacking | -11 -10 -9 -8 -7 -6 -6 --------- Run | Jun Mat Mat Mat Fac Fac Gar Machines Accessed 5 | . 2 1 . . 1 1 Terminals 4 | . 2 1 . . . 1 Fabricators . | . . . . . . . Repair Stations . | . . . . . . . Recycling Units . | . . . . . . . Scanalyzers . | . . . . . . . Garrison Access 1 | . . . . . 1 . Total Hacks 8 | . 4 1 . . 1 2 Successful 4 | . 1 1 . . 1 1 Failed 4 | . 3 . . . . 1 Catastrophic . | . . . . . . . Database Lockouts . | . . . . . . . Manual . | . . . . . . . Terminals 7 | . 4 1 . . . 2 Fabricators . | . . . . . . . Repair Stations . | . . . . . . . Recycling Units . | . . . . . . . Scanalyzers . | . . . . . . . Garrison Access 1 | . . . . . 1 . Terminal Hacks 3 | . 1 1 . . . 1 Branch Access Points 1 | . . 1 . . . . Emergency Access Points 2 | . 1 . . . . 1 Fabricator Hacks . | . . . . . . . Repair Station Hacks . | . . . . . . . Recycling Unit Hacks . | . . . . . . . Scanalyzer . | . . . . . . . Garrison Access Hacks 1 | . . . . . 1 . Unlock Access 1 | . . . . . 1 . Unauthorized Hacks . | . . . . . . . Terminals . | . . . . . . . Fabricators . | . . . . . . . Repair Stations . | . . . . . . . Recycling Units . | . . . . . . . Scanalyzers . | . . . . . . . Garrison Access . | . . . . . . . Data Cores Recovered . | . . . . . . . Used . | . . . . . . . Hacking Detections 2 | . 1 1 . . . . Full Trace Events . | . . . . . . . Feedback Events . | . . . . . . . Feedback Blocked . | . . . . . . . Robot Schematics Acquired . | . . . . . . . Robots Built . | . . . . . . . Authchips . | . . . . . . . Time . | . . . . . . . Total Robot Build Rating . | . . . . . . . Part Schematics Acquired . | . . . . . . . Parts Built . | . . . . . . . Authchips . | . . . . . . . Time . | . . . . . . . Total Part Build Rating . | . . . . . . . Parts Repaired . | . . . . . . . Time . | . . . . . . . Parts Recycled . | . . . . . . . Recycled Matter . | . . . . . . . Retrieved Matter . | . . . . . . . Retrieved Components . | . . . . . . . Parts Scanalyzed . | . . . . . . . Part Schematics Acquired . | . . . . . . . Parts Damaged . | . . . . . . . Bothacking | -11 -10 -9 -8 -7 -6 -6 ------------ Run | Jun Mat Mat Mat Fac Fac Gar Used RIF Installer . | . . . . . . . Robots Hacked 7 | . . 3 1 . . 3 Non-combat . | . . . . . . . Combat 7 | . . 3 1 . . 3 Robot Hacks Applied 8 | . . 3 2 . . 3 find_shortcuts 7 | . . 3 1 . . 3 find_garrison 1 | . . . 1 . . . Relay Couplers Released 5 | . . . . . . 5 Machine Destruction 5 | . . . . . . 5 Fabnet Peak Effective % . | . . . . . . . Robots Rewired 1 | . . . . . . 1 Allies Hacked . | . . . . . . . Hacks Repelled . | . . . . . . . Allies | -11 -10 -9 -8 -7 -6 -6 -------- Run | Jun Mat Mat Mat Fac Fac Gar Total Allies 2 | . . . . . . 2 Largest Group 1 | . . . . . . 1 Highest-Rated Group 85 | . . . . . . 85 Highest-Rated Ally 85 | . . . . . . 85 Total Orders . | . . . . . . . Ally Attacks 7 | . . . . . . 7 Total Damage 502 | . . . . . . 502 Kills . | . . . . . . . Allies Corrupted . | . . . . . . . Allies Melted . | . . . . . . . Intel | -11 -10 -9 -8 -7 -6 -6 ------- Run | Jun Mat Mat Mat Fac Fac Gar Robot Analysis Total 3 | . . 2 . . . 1 Derelict Logs Recovered . | . . . . . . . Drone Launches . | . . . . . . . Drone Recoveries . | . . . . . . . Exploration | -11 -10 -9 -8 -7 -6 -6 ------------- Run | Jun Mat Mat Mat Fac Fac Gar Turns Passed 2124 | 9 75 932 587 101 31 389 Spaces Moved 1140 | 18 150 402 229 64 19 258 Core 255 | 18 150 32 4 . . 51 Treads 671 | . . 344 225 64 19 19 Legs 214 | . . 26 . . . 188 Wheels . | . . . . . . . Hover . | . . . . . . . Flight . | . . . . . . . Fastest Speed 50 | 50 50 50 50 160 160 50 Average Speed 127 | 50 50 148 158 160 160 109 Slowest Speed 160 | 50 50 160 160 160 160 160 Overloaded Moves . | . . . . . . . Propulsion Burnouts . | . . . . . . . Robots Hopped . | . . . . . . . Cave-ins Triggered . | . . . . . . . Exploration Rate (%) 21 | 3 33 48 27 2 1 34 Regions Visited 6 Branch Regions . Pre-discovered Areas . | . . . . . . . Known Exits Taken 1 | . . . . . 1 . Unknown Exits Taken 5 | 1 1 1 1 1 . . Scrap Searched . | . . . . . . . Spaces Dug . | . . . . . . . Terrain Destroyed 90 | . . . . . . 90 Melee . | . . . . . . . Projectile 4 | . . . . . . 4 AOE 86 | . . . . . . 86 Terrain Rammed . | . . . . . . . Walls Destroyed . | . . . . . . . Machines Disabled . | . . . . . . . Actions | -11 -10 -9 -8 -7 -6 -6 --------- Run | Jun Mat Mat Mat Fac Fac Gar Total 1567 | 17 149 650 372 63 19 297 Wait 304 | . . 200 103 . . 1 Move 1135 | 17 149 401 228 63 19 258 Hop . | . . . . . . . Pick Up . | . . . . . . . Fast Attach . | . . . . . . . Attach . | . . . . . . . Detach . | . . . . . . . Swap . | . . . . . . . Drop . | . . . . . . . Fire 121 | . . 49 41 . . 31 Melee . | . . . . . . . Ram . | . . . . . . . Kick . | . . . . . . . Crush . | . . . . . . . Escape Stasis . | . . . . . . . Rewire 7 | . . . . . . 7 Trap . | . . . . . . . Miscellaneous . | . . . . . . . Route ------- -11/Junkyard -10/Materials (discovered 2 exits: *Mat / [*Min]) -9/Materials (discovered 3 exits: [*Mat] / *Min x2) -8/Materials -7/Factory -6/Factory -6/Garrison History --------- Turn | Location | Event 3 | -11/Junkyard | Discovered new exit (range 14) 10 | -11/Junkyard | Entered Materials 66 | -10/Materials | Discovered new exit (range 13) 77 | -10/Materials | Discovered new exit (range 15) 85 | -10/Materials | Entered another Materials area 333 | -9/Materials | Discovered new exit (range 6) 749 | -9/Materials | Lost 3 parts (1n1u1w) 807 | -9/Materials | Identified exit to Mines 910 | -9/Materials | Discovered new exit (range 15) 1017 | -9/Materials | Entered another Materials area 1565 | -8/Materials | Discovered new exit (range 16) 1604 | -8/Materials | Entered Factory 1681 | -7/Factory | Discovered new exit (range 16) 1705 | -7/Factory | Entered another Factory area 1736 | -6/Factory | Identified exit to Garrison 1736 | -6/Factory | Entered Garrison 1774 | -6/Garrison | Rescued a captive Derelict 1777 | -6/Garrison | Triggered checkpoint 1790 | -6/Garrison | Rescued a captive Derelict 1831 | -6/Garrison | Destroyed 7 combat bots 1874 | -6/Garrison | Garrison Relay disabled 1903 | -6/Garrison | Phase Generator disabled 2004 | -6/Garrison | Spotted B-75 Beast 2040 | -6/Garrison | Spotted B-90 Cyclops 2073 | -6/Garrison | Rewired B-75 Beast 2077 | -6/Garrison | Core integrity fell below 50% 2112 | -6/Garrison | Core integrity fell below 20% 2122 | -6/Garrison | Triggered checkpoint 2124 | -6/Garrison | Triggered checkpoint 2125 | -6/Garrison | Destroyed by B-75 Beast with Magnetic Acceleration Cannon Last Messages --------------- 02077_ Machine disabled. 02077_ Slug penetrates B-90 Cyclops. 02087_ Machine disabled. 02088_ B-90 Cyclops exits siege mode. 02089_ Slug penetrates B-90 Cyclops. 02093_ Beast 5a destroyed. 02094_ Phase Shifter destroyed. 02095_ Slug penetrates B-90 Cyclops. 02096_ Gauss Rifle destroyed. 02098_ B-90 Cyclops activates siege mode. 02098_ Gauss Rifle destroyed. 02099_ Acquired 49 matter. 02100_ Machine disabled. 02103_ Flexi-carbon Leg destroyed. 02107_ Machine disabled. 02122_ Beams of light sweep through the air. An alarm sounds. 02122_ Targeting Computer destroyed. 02122_ Critical hit (Blast). 02124_ Beams of light sweep through the air. An alarm sounds. 02125_ Released control of H-66 Slayer. Map ----- +----------------------------------------------------+ | ??????????????????????????# #????### ##??????????? | | ??????????????????????????# #????# #??????????? | | ??????????????????????????#"###### ######?????? | | ??????????????????????????#! ! #?????? | | ??????????????????????????##!! ######"#### #?????? | | ??????????????????????????#"! ""#???# ## # ###???? | | ???????#??????????????????#######???# * # | | ????????????????????????????????????#!#### ###???? | | ????????????????????????????????????#[#??# #?????? | | ???????#???????????????????????####?#*#??# #?????? | | ???????????????????????????????#%%#?#*#??# #?????? | | ???????????????????????????????##[###[#### ##### # | | ???????????????????????????????#* !!! =%%" # | | ???????#???????????????????????##!###!#### ####### | | ???????????????????????????????#! #?#=#?## #?????? | | ???????????????????????????????####?# #?#T #???### | | ????????????????????????????????????# #?## #???# | | ??????????#?????????????????????????#=#### ##### | | ?????????????????????????????######## ## | | ?#???????????????????????????# [*= | | ?????????????????????????????# ######### ######## | | ??????????????????????######?# #???????# ######## | | ?????????????????# ???# #?# #???????# | | ????+????????????# ## %e### ##??????# | | ??????????????#### e ######## ######## | | ?????????? @h #??????? | | ?????????????????# ^ #??????? | | ?#???????????????# ## ## ######### ######## | | ?????????????????# ???# ## #???????# #!!!!!!# | | ???????????????#???? ??????# # | | ?????????????????? BB %#?????########## | | ?????????????????" BB #??????????????? | | ?????????????????" ?????????????? | | ?????????????????# ## ## #### ????????????? | | ?????????????????# ?# ## #???##???????????? | | ????????????????? ? ????????????????? | | ???????+???????? ????????????????? | | ????#???????#??### ????????????????? | | ??????????????????? ##""""## ###??#????????????? | | #???????????????????????????# #?????????????????? | | ???????????????????????#????# ??????????????????? | | ????????????????????????????# ??????????????????? | | ??????????????????#??#??????# ??????????????????? | | ????????????????????????????? ??????????????????? | | #?????????????#??????????????????????????????????? | | ???????????????????????????????????????#?????????? | | ???????????????????????????????????????#?????????? | | ??????????????#??????????????????????????????????? | | ?????????????????????????????????????????????????? | | ?????????????????????????????????????????????????? | +----------------------------------------------------+ Best States ------------- Heat Dissipation 42 Energy Generation 23 Energy Capacity 215 Matter Stores 200 Matter Capacity 200 Sight Range 16 Terrain Scan Density 10 Armor Coverage 150 Resistance: KI 25 Resistance: EX 50 Resistance: I 25 Phase Shifting 5 Evasion (%) 60 Targeting Accuracy 10 Recoil Reduction 2 Item Schematics ----------------- None Robot Schematics ------------------ None Fabricated ------------ Nothing Alien Tech Used ----------------- None Achievements -------------- None Challenges ------------ None Polymind | -11 -10 -9 -8 -7 -6 -6 ---------- Run | Jun Mat Mat Mat Fac Fac Gar Hosts 7 | . . 3 1 . . 3 Combat Hostiles 7 | . . 3 1 . . 3 Allies . | . . . . . . . Unique Host Classes 3 | . . 2 . . . 1 Average Host Suspicion 88 | . . 98 88 14 3 92 Unsuspicious Activity 257 | . . 141 91 . . 25 Returns to Shadow . | . . . . . . . Fuzzy Dispatches . | . . . . . . . Protomatter Created 314 | . . 113 8 . . 193 Used 237 | . . 61 23 . . 153 Decayed 63 | . . 18 5 . . 40 Highest Spend 51 | . . 23 23 . . 51 Top 5 Hosts by Kills: Y-45 Defender (-9/Materials: 17) Y-45 Defender (-9/Materials: 9) H-66 Slayer (-6/Garrison: 8) Y-45 Defender (-8/Materials: 4) G-34 Mercenary (-9/Materials: 1) Game ------ Seed FluxSkeletonStreamer Manual? 0 Play Time 00:19:27 Cumulative 52.7 hours Start 2023.08.09 @ 16:51:43 End 2023.08.09 @ 17:09:23 Sessions 1 Manual Loads 0 Difficulty Rogue Special Mode Winter2022/Polymind Game No. 55 Rogue 52 Adventurer 1 Explorer 2 Win Type - Total 1 Types 1/0/0/0/0/0/0/0/0 Lore% 43 Gallery% 45 Achievement% 38 Wizard Run 0 Options --------- ASCII 0 Keyboard 0 Movement Mouse Keybinds 0 Fullscreen 2 Font 18/Terminus Map View 76x50 Tactical HUD 1 Map Filters NONE Filters NONE Steam 1 RUN: c5bd8e29-3220-4775-b8a4-69a7b3701ea7